bitfinex/quotes_BTCUSD_20240727
["timestamp","ask_amount","ask_price","bid_price","bid_amount"]
[1722042448371,1.82152313,67972.0,67971.0,0.10255132]
[1722042449409,1.73672313,67972.0,67971.0,0.10255132]
[1722042449607,1.82152313,67972.0,67971.0,0.10255132]
[1722042451038,1.82152313,67972.0,67971.0,0.0671]
[1722042453443,1.79843226,67972.0,67971.0,0.0671]
[1722042455553,1.79906897,67972.0,67971.0,0.0671]
[1722042456656,1.02579297,67972.0,67971.0,0.0671]
[1722042456859,1.02579297,67972.0,67971.0,0.1442]
[1722042456860,0.32549635,67972.0,67971.0,0.1442]
[1722042457071,0.17837735,67972.0,67971.0,0.1442]
[1722042457252,0.30249635,67972.0,67971.0,0.1442]
[1722042457453,0.59673435,67972.0,67971.0,0.1442]
[1722042458319,0.69673435,67972.0,67971.0,0.1442]
[1722042458730,0.63286423,67972.0,67971.0,0.1442]
[1722042458933,0.70877116,67972.0,67971.0,0.1442]
[1722042459235,0.70977116,67972.0,67971.0,0.1442]
[1722042459462,0.70877116,67972.0,67971.0,0.1442]
[1722042459597,0.70977116,67972.0,67971.0,0.1442]
[1722042460334,0.73286058,67972.0,67971.0,0.1442]
[1722042460566,0.70977116,67972.0,67971.0,0.1442]
[1722042460896,0.79457116,67972.0,67971.0,0.1442]
[1722042462082,0.73066423,67972.0,67971.0,0.1442]
[1722042462222,0.79491277,67972.0,67971.0,0.1442]
[1722042463930,0.81800219,67972.0,67971.0,0.1442]
[1722042465085,0.79491277,67972.0,67971.0,0.1442]
[1722042465506,0.73066423,67972.0,67971.0,0.1442]
[1722042465712,0.79495261,67972.0,67971.0,0.1442]
[1722042468353,0.81804203,67972.0,67971.0,0.1442]
[1722042468552,0.81804203,67972.0,67971.0,0.0671]
[1722042468752,1.04799165,67972.0,67971.0,0.0671]
[1722042468955,1.11228861,67972.0,67971.0,0.0671]
[1722042469359,1.24434196,67972.0,67971.0,0.0671]
[1722042469760,1.08919919,67972.0,67971.0,0.0671]
[1722042470895,1.22125254,67972.0,67971.0,0.0671]
[1722042471095,1.08919919,67972.0,67971.0,0.0671]
[1722042472893,1.11228873,67972.0,67971.0,0.0671]
[1722042473292,1.08919919,67972.0,67971.0,0.0671]
[1722042473498,1.08819919,67972.0,67971.0,0.0671]
[1722042473699,1.08919919,67972.0,67971.0,0.0671]
[1722042474321,1.02490223,67972.0,67971.0,0.0671]
[1722042475058,1.02574223,67972.0,67971.0,0.068024]
[1722042476203,1.04883194,67972.0,67971.0,0.068024]
[1722042477264,1.02574223,67972.0,67971.0,0.068024]
[1722042477763,1.31998023,67972.0,67971.0,0.068024]
[1722042477982,1.8152398,67972.0,67971.0,0.007924]
[1722042478131,1.66498023,67972.0,67971.0,0.007924]
[1722042478552,1.95921823,67972.0,67971.0,0.007924]
[1722042480224,1.95821823,67972.0,67971.0,0.007924]
[1722042480726,1.98130887,67972.0,67971.0,0.007924]
[1722042480875,2.11590451,67972.0,67971.0,0.007924]
[1722042481268,2.28165657,67972.0,67971.0,0.007924]
[1722042482113,2.28179689,67972.0,67971.0,0.007924]
[1722042482898,2.28329681,67972.0,67971.0,0.007924]
[1722042483107,2.28179689,67972.0,67971.0,0.007924]
[1722042483501,2.28275786,67972.0,67971.0,0.007924]
[1722042483706,2.29079689,67972.0,67971.0,0.007924]
[1722042484609,2.29175262,67972.0,67971.0,0.007924]
[1722042484994,2.54175262,67972.0,67971.0,0.007924]
[1722042485401,2.51866198,67972.0,67971.0,0.007924]
[1722042485606,2.6141702,67972.0,67971.0,0.007924]
[1722042485805,2.51565571,67972.0,67971.0,0.007924]
[1722042486828,2.80989371,67972.0,67971.0,0.007924]
[1722042487109,2.59471654,67972.0,67971.0,0.007924]
[1722042487312,2.63895454,67972.0,67971.0,0.007924]
[1722042487517,2.14621654,67972.0,67971.0,0.007924]
[1722042487736,2.23101654,67972.0,67971.0,0.007924]
[1722042487936,1.324093,67971.0,67970.0,0.009108]
[1722042488146,1.64552164,67971.0,67970.0,0.009108]
[1722042488558,1.64695891,67971.0,67970.0,0.009108]
[1722042488758,1.76801662,67971.0,67970.0,0.009108]
[1722042488939,1.6686131,67971.0,67970.0,0.009108]
[1722042489121,1.66989253,67971.0,67970.0,0.009108]
[1722042489322,1.6686131,67971.0,67970.0,0.009108]
[1722042489542,1.64659188,67971.0,67970.0,0.009108]
[1722042489742,1.87992825,67971.0,67970.0,0.009108]
[1722042489947,1.73032164,67971.0,67970.0,0.009108]
[1722042490147,1.73170715,67971.0,67970.0,0.009108]
[1722042490361,1.73970715,67971.0,67970.0,0.009108]
[1722042491505,1.73832164,67971.0,67970.0,0.009108]
[1722042491720,1.83654498,67971.0,67970.0,0.009108]
[1722042492715,1.85963649,67971.0,67970.0,0.009108]
[1722042492915,1.83654498,67971.0,67970.0,0.009108]
[1722042493210,1.83654498,67971.0,67970.0,0.04455932]
[1722042494879,1.67336654,67971.0,67970.0,0.04455932]
[1722042495080,1.83661428,67971.0,67970.0,0.04455932]
[1722042496297,1.85970579,67971.0,67970.0,0.04455932]
[1722042497132,1.90970579,67971.0,67970.0,0.04455932]
[1722042497444,1.88661428,67971.0,67970.0,0.04455932]
[1722042497899,1.83661428,67971.0,67970.0,0.04455932]
[1722042498087,1.83917995,67971.0,67970.0,0.04455932]
[1722042498288,1.67593221,67971.0,67970.0,0.04455932]
[1722042498485,1.83821838,67971.0,67970.0,0.04455932]
[1722042499608,1.75341838,67971.0,67970.0,0.04455932]
[1722042499810,1.83821838,67971.0,67970.0,0.04455932]
[1722042501718,1.83901744,67971.0,67970.0,0.04455932]
[1722042501935,1.86210899,67971.0,67970.0,0.04455932]
[1722042502359,1.83901744,67971.0,67970.0,0.04455932]
[1722042504342,1.88901744,67971.0,67970.0,0.04455932]
[1722042505184,1.91210899,67971.0,67970.0,0.04455932]
[1722042505539,1.88901744,67971.0,67970.0,0.04455932]
[1722042506258,2.59674044,67971.0,67970.0,0.04455932]
[1722042506465,2.59674044,67971.0,67970.0,0.02838018]
[1722042506466,2.66174044,67971.0,67970.0,0.02838018]
[1722042506720,2.66174044,67971.0,67969.0,0.009108]
[1722042506721,1.71525863,67970.0,67969.0,0.009108]
[1722042506893,2.50139677,67970.0,67969.0,0.009108]
[1722042507508,2.65165634,67970.0,67969.0,0.009108]
[1722042507702,2.50139677,67970.0,67969.0,0.009108]
[1722042508368,2.52418101,67970.0,67969.0,0.009108]
[1722042508987,2.20684177,67970.0,67969.0,0.009108]
[1722042509296,2.50108877,67970.0,67969.0,0.009108]
[1722042509692,2.50808877,67970.0,67969.0,0.009108]
[1722042509867,2.65834834,67970.0,67969.0,0.009108]
[1722042511957,2.65814983,67970.0,67969.0,0.009108]
[1722042512101,2.68124207,67970.0,67969.0,0.009108]
[1722042512620,2.65814983,67970.0,67969.0,0.009108]
[1722042513608,2.50789026,67970.0,67969.0,0.009108]
[1722042514799,2.25789026,67970.0,67969.0,0.009108]
[1722042514957,2.54269026,67970.0,67969.0,0.009108]
[1722042515158,1.83864326,67970.0,67969.0,0.009108]
[1722042515370,1.83864326,67970.0,67969.0,0.154308]
[1722042515569,1.81564326,67970.0,67969.0,0.154308]
[1722042515768,1.92353522,67970.0,67969.0,0.154308]
[1722042516167,1.90044326,67970.0,67969.0,0.154308]
[1722042517005,1.92344326,67970.0,67969.0,0.154308]
[1722042518495,1.76086454,67970.0,67969.0,0.154308]
[1722042518651,1.92296638,67970.0,67969.0,0.154308]
[1722042519370,1.94605778,67970.0,67969.0,0.071208]
[1722042519976,1.94608209,67970.0,67969.0,0.071208]
[1722042520594,1.92299069,67970.0,67969.0,0.071208]
[1722042521975,1.76086454,67970.0,67969.0,0.071208]
[1722042522143,1.92308146,67970.0,67969.0,0.071208]
[1722042523822,1.94617273,67970.0,67969.0,0.071208]
[1722042524021,1.92308146,67970.0,67969.0,0.009108]
[1722042525305,1.92313938,67970.0,67969.0,0.009108]
[1722042527275,1.94623074,67970.0,67969.0,0.009108]
[1722042527619,1.92313938,67970.0,67969.0,0.009108]
[1722042528541,1.76086454,67970.0,67969.0,0.009108]
[1722042528731,1.92301331,67970.0,67969.0,0.009108]
[1722042530575,1.94610467,67970.0,67969.0,0.009108]
[1722042532062,2.14580226,67970.0,67969.0,0.009108]
[1722042532289,2.07273,67970.0,67969.0,0.009108]
[1722042532504,2.813377,67970.0,67969.0,0.009108]
[1722042532713,2.563377,67970.0,67969.0,0.009108]
[1722042533038,2.498677,67970.0,67969.0,0.009108]
[1722042533508,2.491677,67970.0,67969.0,0.009108]
[1722042533852,2.752677,67970.0,67969.0,0.009108]
[1722042534058,2.502677,67970.0,67969.0,0.009108]
[1722042535053,2.52576868,67970.0,67969.0,0.009108]
[1722042535452,2.52479165,67970.0,67969.0,0.009108]
[1722042536093,2.77479165,67970.0,67969.0,0.009108]
[1722042536546,2.75169997,67970.0,67969.0,0.009108]
[1722042538850,2.75169591,67970.0,67969.0,0.009108]
[1722042539392,2.96857472,67970.0,67969.0,0.009108]
[1722042539618,2.75169591,67970.0,67969.0,0.009108]
[1722042539819,2.77478835,67970.0,67969.0,0.009108]
[1722042540204,2.75169591,67970.0,67969.0,0.009108]
[1722042541132,2.75169591,67970.0,67961.0,0.076008]
[1722042541133,0.50266763,67962.0,67961.0,0.076008]
[1722042541334,2.62104612,67962.0,67961.0,0.076008]
[1722042541539,3.15121521,67962.0,67960.0,0.0124804]
[1722042541739,3.15121521,67962.0,67955.0,1e-06]
[1722042541740,0.83260963,67956.0,67955.0,1e-06]
[1722042541958,0.91314863,67950.0,67944.0,0.0656]
[1722042542116,2.21847085,67950.0,67944.0,0.0656]
[1722042542324,2.59030121,67950.0,67944.0,0.0656]
[1722042543012,2.59030121,67950.0,67941.0,0.002]
[1722042543428,2.01002863,67948.0,67941.0,0.002]
[1722042543631,1.41747363,67946.0,67941.0,0.002]
[1722042543837,2.42119221,67946.0,67941.0,0.002]
[1722042544012,3.00989421,67946.0,67941.0,0.002]
[1722042544246,1.71580363,67942.0,67941.0,0.002]
[1722042544438,1.45767763,67932.0,67925.0,0.0656]
[1722042544638,1.45767763,67932.0,67921.0,0.0783]
[1722042544639,1.83907357,67932.0,67931.0,0.076708]
[1722042544774,1.93539357,67932.0,67931.0,0.153008]
[1722042545873,1.95978623,67932.0,67931.0,0.153008]
[1722042546685,2.09150613,67932.0,67931.0,0.153008]
[1722042547326,2.09350613,67932.0,67931.0,0.153008]
[1722042547546,2.09570025,67932.0,67931.0,0.153008]
[1722042547749,2.24595982,67932.0,67931.0,0.153008]
[1722042547955,2.39011225,67932.0,67931.0,0.011108]
[1722042548083,1.03316863,67928.0,67927.0,0.065308]
[1722042548306,1.75308027,67928.0,67927.0,0.065308]
[1722042548519,1.03324563,67923.0,67922.0,0.0763]
[1722042548709,1.56838785,67923.0,67922.0,0.0763]
[1722042548929,1.45872827,67923.0,67922.0,0.0763]
[1722042549566,1.03325963,67922.0,67921.0,0.002]
[1722042549777,1.48354547,67922.0,67921.0,0.002]
[1722042550130,1.37394227,67922.0,67921.0,0.002]
[1722042550332,1.4835462,67922.0,67921.0,0.002]
[1722042550451,1.37394227,67922.0,67921.0,0.002]
[1722042550650,1.35521245,67922.0,67921.0,0.002]
[1722042550921,1.421818,67922.0,67921.0,0.002]
[1722042551301,1.35521245,67922.0,67921.0,0.0676]
[1722042551477,1.42092505,67922.0,67921.0,0.0676]
[1722042551678,1.42359421,67922.0,67921.0,0.0676]
[1722042551950,1.44268161,67922.0,67921.0,0.0676]
[1722042553490,1.06342661,67922.0,67921.0,0.1439]
[1722042553634,1.14822661,67922.0,67921.0,0.1439]
[1722042554871,1.20725061,67922.0,67921.0,0.1439]
[1722042555908,1.18414486,67922.0,67921.0,0.1439]
[1722042559193,1.20725077,67922.0,67921.0,0.1439]
[1722042560002,1.18414486,67922.0,67921.0,0.1439]
[1722042560360,1.47859986,67922.0,67921.0,0.0676]
[1722042560798,1.18414486,67922.0,67921.0,0.0676]
[1722042561187,1.47859986,67922.0,67921.0,0.0676]
[1722042562249,1.50170597,67922.0,67921.0,0.0676]
[1722042563501,1.47859986,67922.0,67921.0,0.002]
[1722042563888,1.54548084,67922.0,67921.0,0.002]
[1722042564107,1.86156486,67922.0,67921.0,0.002]
[1722042564308,1.92844578,67922.0,67921.0,0.002]
[1722042564507,1.63399078,67922.0,67921.0,0.002]
[1722042564822,1.92844578,67922.0,67921.0,0.002]
[1722042565207,1.63399078,67922.0,67921.0,0.002]
[1722042565409,1.54919078,67922.0,67921.0,0.002]
[1722042565710,1.63399078,67922.0,67921.0,0.002]
[1722042565870,1.63299078,67922.0,67921.0,0.002]
[1722042566213,1.64099078,67922.0,67921.0,0.002]
[1722042566692,1.66409839,67922.0,67921.0,0.0685]
[1722042566889,1.57558839,67922.0,67921.0,0.0685]
[1722042567537,1.57640842,67922.0,67921.0,0.0685]
[1722042568057,1.57640842,67922.0,67921.0,0.002]
[1722042570758,1.50870747,67922.0,67921.0,0.002]
[1722042570961,1.57634082,67922.0,67921.0,0.002]
[1722042571217,1.94592561,67922.0,67921.0,0.002]
[1722042571392,1.50400163,67920.0,67911.0,0.0685]
[1722042571616,0.94441463,67912.0,67911.0,0.002]
[1722042571727,1.58396064,67912.0,67911.0,0.002]
[1722042571932,1.58396064,67912.0,67911.0,0.1439]
[1722042571933,1.57845864,67912.0,67911.0,0.1439]
[1722042572176,1.28296064,67912.0,67911.0,0.1439]
[1722042572635,1.07326264,67912.0,67911.0,0.1439]
[1722042573235,1.07426264,67912.0,67911.0,0.1439]
[1722042573455,1.36976064,67912.0,67911.0,0.1439]
[1722042574070,1.36874634,67912.0,67911.0,0.1439]
[1722042574904,1.39185519,67912.0,67911.0,0.1439]
[1722042576299,1.36874634,67912.0,67911.0,0.1439]
[1722042577115,1.66324434,67912.0,67911.0,0.1439]
[1722042577516,1.66320534,67912.0,67911.0,0.1439]
[1722042578267,1.36870734,67912.0,67911.0,0.1439]
[1722042579030,1.66320534,67912.0,67911.0,0.1439]
[1722042579606,1.68631419,67912.0,67911.0,0.1439]
[1722042580229,1.68631419,67912.0,67911.0,0.0685]
[1722042580427,1.66320534,67912.0,67911.0,0.0685]
[1722042580628,1.66320534,67912.0,67911.0,0.002]
[1722042580629,1.95770334,67912.0,67911.0,0.002]
[1722042580874,2.12561845,67912.0,67911.0,0.002]
[1722042581084,2.225252,67912.0,67911.0,0.002]
[1722042582429,2.224252,67912.0,67911.0,0.002]
[1722042582621,2.26807831,67912.0,67911.0,0.002]
[1722042583406,2.12761845,67912.0,67911.0,0.002]
[1722042583610,2.13166758,67912.0,67911.0,0.002]
[1722042583776,2.21646758,67912.0,67911.0,0.002]
[1722042584179,2.21678626,67912.0,67911.0,0.002]
[1722042584599,2.23869941,67912.0,67911.0,0.002]
[1722042584961,2.31555856,67912.0,67911.0,0.002]
[1722042585565,2.33747172,67912.0,67911.0,0.002]
[1722042586526,2.25807172,67912.0,67911.0,0.002]
[1722042586644,2.25807172,67912.0,67911.0,0.0622]
[1722042586849,2.25807172,67912.0,67911.0,0.002]
[1722042587435,2.17349575,67912.0,67911.0,0.002]
[1722042587637,2.14862751,67912.0,67911.0,0.002]
[1722042587751,2.17173752,67912.0,67911.0,0.002]
[1722042587946,2.2035331,67912.0,67911.0,0.002]
[1722042588152,2.14862751,67912.0,67911.0,0.002]
[1722042590896,2.14888136,67912.0,67911.0,0.002]
[1722042591336,2.17199137,67912.0,67911.0,0.002]
[1722042592311,1.87749337,67912.0,67911.0,0.002]
[1722042592496,1.78898337,67912.0,67911.0,0.002]
[1722042592906,2.08348137,67912.0,67911.0,0.002]
[1722042593106,2.22036743,67912.0,67911.0,0.002]
[1722042593319,2.08848137,67912.0,67911.0,0.002]
[1722042594183,1.70918337,67912.0,67911.0,0.002]
[1722042594387,1.71150897,67912.0,67911.0,0.002]
[1722042594565,1.79630897,67912.0,67911.0,0.002]
[1722042594767,2.09080697,67912.0,67911.0,0.002]
[1722042596359,2.15626654,67912.0,67911.0,0.002]
[1722042596563,0.73894463,67909.0,67908.0,0.051308]
[1722042596765,1.37786289,67909.0,67908.0,0.051308]
[1722042597009,1.37619526,67909.0,67908.0,0.051308]
[1722042597180,1.46266289,67909.0,67908.0,0.051308]
[1722042597349,1.45237599,67909.0,67908.0,0.051308]
[1722042597579,1.45212569,67909.0,67908.0,0.051308]
[1722042599140,1.46303053,67909.0,67908.0,0.051308]
[1722042599349,1.4603629,67909.0,67908.0,0.051308]
[1722042599551,1.56030385,67909.0,67908.0,0.051308]
[1722042599727,1.58341407,67909.0,67908.0,0.051308]
[1722042599957,1.5860817,67909.0,67908.0,0.051308]
[1722042600615,1.5012817,67909.0,67908.0,0.051308]
[1722042600826,1.48651175,67909.0,67908.0,0.051308]
[1722042601041,1.48651175,67909.0,67908.0,0.132308]
[1722042601042,1.70171175,67909.0,67908.0,0.132308]
[1722042601244,1.51052105,67909.0,67908.0,0.132308]
[1722042601462,1.37860153,67909.0,67908.0,0.132308]
[1722042601667,1.31148823,67909.0,67908.0,0.132308]
[1722042601876,1.37889677,67909.0,67908.0,0.132308]
[1722042602478,1.51083216,67909.0,67908.0,0.132308]
[1722042602682,1.37889677,67909.0,67908.0,0.132308]
[1722042602907,1.51084936,67909.0,67908.0,0.132308]
[1722042603557,1.51084022,67909.0,67908.0,0.132308]
[1722042603956,1.37888763,67909.0,67908.0,0.132308]
[1722042604542,1.48679733,67909.0,67908.0,0.132308]
[1722042606746,1.4872942,67909.0,67908.0,0.132308]
[1722042607001,1.4872942,67909.0,67908.0,0.133232]
[1722042607411,1.4881342,67909.0,67908.0,0.133232]
[1722042610019,1.48810785,67909.0,67908.0,0.133232]
[1722042610796,1.78261885,67909.0,67908.0,0.133232]
[1722042610971,1.51121312,67909.0,67908.0,0.133232]
[1722042611182,1.50954549,67909.0,67908.0,0.133232]
[1722042611345,1.80405649,67909.0,67908.0,0.133232]
[1722042611784,1.80305649,67909.0,67908.0,0.133232]
[1722042611985,1.81943385,67909.0,67908.0,0.133232]
[1722042612326,1.52759048,67909.0,67908.0,0.133232]
[1722042613080,1.44179048,67909.0,67908.0,0.133232]
[1722042613295,1.44179048,67909.0,67908.0,0.000924]
[1722042613296,1.45872056,67909.0,67908.0,0.000924]
[1722042613500,2.14770918,67909.0,67908.0,0.000924]
[1722042613703,2.14870918,67909.0,67908.0,0.000924]
[1722042614036,1.99844961,67909.0,67908.0,0.000924]
[1722042614640,1.97533991,67909.0,67908.0,0.000924]
[1722042615620,2.26985091,67909.0,67908.0,0.000924]
[1722042616691,2.27028823,67909.0,67908.0,0.000924]
[1722042617365,2.46959823,67909.0,67908.0,0.000924]
[1722042617620,2.8698578,67909.0,67908.0,0.000924]
[1722042618180,3.1643688,67909.0,67908.0,0.000924]
[1722042618423,3.1623688,67909.0,67908.0,0.000924]
[1722042618904,3.1733688,67909.0,67908.0,0.001924]
[1722042619157,3.02310923,67909.0,67908.0,0.001924]
[1722042619925,2.55964286,67909.0,67908.0,0.001924]
[1722042620176,2.72760297,67909.0,67908.0,0.001924]
[1722042621409,2.75071636,67909.0,67908.0,0.001924]
[1722042622108,2.72760297,67909.0,67908.0,0.001924]
[1722042622367,2.87786254,67909.0,67908.0,0.001924]
[1722042622764,2.47760297,67909.0,67908.0,0.001924]
[1722042622906,2.41680297,67909.0,67908.0,0.001924]
[1722042623125,2.33336253,67909.0,67908.0,0.001924]
[1722042623330,2.41816253,67909.0,67908.0,0.001924]
[1722042623533,2.24884286,67909.0,67908.0,0.001924]
[1722042623730,2.41816388,67909.0,67908.0,0.001924]
[1722042624032,2.12365288,67909.0,67908.0,0.001924]
[1722042624275,1.98885288,67909.0,67908.0,0.001924]
[1722042624695,2.07371481,67909.0,67908.0,0.001924]
[1722042625229,2.41822581,67909.0,67908.0,0.001924]
[1722042625458,2.27397438,67909.0,67908.0,0.001924]
[1722042625826,2.56848538,67909.0,67908.0,0.001924]
[1722042626189,2.27397438,67909.0,67908.0,0.001924]
[1722042626525,2.27397735,67909.0,67908.0,0.001924]
[1722042627156,2.12371778,67909.0,67908.0,0.001924]
[1722042627782,1.82470778,67909.0,67908.0,0.067324]
[1722042628042,1.79081397,67909.0,67908.0,0.147724]
[1722042628242,1.89233054,67909.0,67908.0,0.147724]
[1722042628433,1.79081397,67909.0,67908.0,0.147724]
[1722042628874,1.8139251,67909.0,67908.0,0.147724]
[1722042629415,1.8369251,67909.0,67908.0,0.147724]
[1722042629611,0.2983371,67909.0,67908.0,0.147724]
[1722042629815,0.28869298,67909.0,67908.0,0.1634083]
[1722042630084,0.26392008,67909.0,67908.0,0.147724]
[1722042630322,0.45450293,67909.0,67908.0,0.147724]
[1722042630497,0.26538969,67909.0,67908.0,0.147724]
[1722042630706,0.41264469,67909.0,67908.0,0.147724]
[1722042630939,0.70215569,67909.0,67908.0,0.146724]
[1722042631147,0.70315569,67909.0,67908.0,0.158724]
[1722042631777,0.79715569,67909.0,67908.0,0.158724]
[1722042632017,0.79815569,67909.0,67908.0,0.158724]
[1722042633059,0.72988988,67909.0,67908.0,0.158724]
[1722042633239,0.77511018,67909.0,67908.0,0.158724]
[1722042633656,0.77611018,67909.0,67908.0,0.158724]
[1722042634004,0.77511018,67909.0,67908.0,0.158724]
[1722042634846,0.35139199,67909.0,67908.0,0.158724]
[1722042635015,0.70677875,67909.0,67908.0,0.158724]
[1722042635196,0.79582012,67909.0,67908.0,0.158724]
[1722042635397,0.70777875,67909.0,67908.0,0.158724]
[1722042636388,0.81791437,67909.0,67908.0,0.158724]
[1722042636590,0.52340337,67909.0,67908.0,0.158724]
[1722042636776,0.37614837,67909.0,67908.0,0.158724]
[1722042636974,0.52340337,67909.0,67908.0,0.158724]
[1722042637782,0.52173574,67909.0,67908.0,0.158724]
[1722042637927,0.37448074,67909.0,67908.0,0.158724]
[1722042638152,0.52340337,67909.0,67908.0,0.158724]
[1722042638356,0.43537667,67909.0,67908.0,0.158724]
[1722042638764,0.28645404,67909.0,67908.0,0.158724]
[1722042638968,0.43370904,67909.0,67908.0,0.158724]
[1722042639169,0.43537667,67909.0,67908.0,0.158724]
[1722042639617,0.28812167,67909.0,67908.0,0.158724]
[1722042639818,0.26501275,67909.0,67908.0,0.153724]
[1722042640023,0.41226775,67909.0,67908.0,0.153724]
[1722042640177,0.41226775,67909.0,67908.0,0.154648]
[1722042640748,0.16334512,67909.0,67908.0,0.67585767]
[1722042640921,0.0436057,67909.0,67908.0,0.9220413]
[1722042641133,0.0436057,67909.0,67908.0,1.26488967]
[1722042641765,0.0436057,67909.0,67908.0,1.51488967]
[1722042642285,0.0436057,67909.0,67908.0,1.2665573]
[1722042642460,0.0436057,67909.0,67908.0,1.51588967]
[1722042642714,0.0426057,67909.0,67908.0,1.50388967]
[1722042643062,0.0426057,67909.0,67908.0,1.51788967]
[1722042643063,0.0436057,67909.0,67908.0,1.51788967]
[1722042643320,0.06671255,67909.0,67908.0,1.51788967]
[1722042643722,0.06571255,67909.0,67908.0,1.50288967]
[1722042643912,0.06471255,67909.0,67908.0,1.50288967]
[1722042644240,0.0426057,67909.0,67908.0,1.50488967]
[1722042644447,0.0416057,67909.0,67908.0,1.50288967]
[1722042644907,0.00184,67909.0,67908.0,2.01310567]
[1722042645153,0.02,67922.0,67921.0,0.1373]
[1722042645322,0.02,67922.0,67921.0,0.873447]
[1722042645524,0.09032789,67922.0,67921.0,0.873447]
[1722042646107,0.09032789,67922.0,67921.0,0.578988]
[1722042646265,0.09032789,67922.0,67921.0,0.1373]
[1722042646466,0.09032789,67922.0,67921.0,0.303259]
[1722042646872,0.09032789,67922.0,67921.0,0.16303]
[1722042647175,0.09032789,67922.0,67921.0,0.310259]
[1722042647508,0.11343167,67922.0,67921.0,0.310259]
[1722042647929,0.38645052,67922.0,67921.0,0.16303]
[1722042648227,0.82813252,67922.0,67921.0,0.0691]
[1722042648638,0.82913252,67922.0,67921.0,0.0691]
[1722042649060,0.82913252,67922.0,67921.0,0.0731]
[1722042649061,0.95817679,67922.0,67921.0,0.0731]
[1722042649232,1.25263179,67922.0,67921.0,0.0731]
[1722042651964,1.27573654,67922.0,67921.0,0.0731]
[1722042656574,1.25263179,67922.0,67921.0,0.0731]
[1722042657332,1.32139484,67922.0,67921.0,0.0731]
[1722042659500,1.32138345,67922.0,67921.0,0.0731]
[1722042660262,1.32038345,67922.0,67921.0,0.0731]
[1722042660483,1.02592845,67922.0,67921.0,0.0731]
[1722042660729,0.36659916,67922.0,67921.0,0.16583]
[1722042660949,0.66105416,67922.0,67921.0,0.16583]
[1722042661114,0.95550916,67922.0,67921.0,0.16583]
[1722042661521,0.66105416,67922.0,67921.0,0.16583]
[1722042661676,0.2107397,67922.0,67921.0,0.16583]
[1722042661865,0.35928941,67922.0,67921.0,0.16583]
[1722042662070,0.3579667,67922.0,67921.0,0.16583]
[1722042662288,0.2107397,67922.0,67921.0,0.16583]
[1722042662495,0.21161056,67922.0,67921.0,0.16583]
[1722042662692,0.3579667,67922.0,67921.0,0.151]
[1722042663111,0.35930312,67922.0,67921.0,0.151]
[1722042663361,0.3579667,67922.0,67921.0,0.151]
[1722042663628,0.2107397,67922.0,67921.0,0.151]
[1722042663866,0.38107117,67922.0,67921.0,0.151]
[1722042664942,0.23384417,67922.0,67921.0,0.151]
[1722042666125,0.38107117,67922.0,67921.0,0.151]
[1722042668030,0.3579667,67922.0,67921.0,0.151]
[1722042668471,0.65508688,67922.0,67921.0,0.151]
[1722042668598,0.65408933,67922.0,67921.0,0.151]
[1722042669389,0.72221917,67922.0,67921.0,0.151]
[1722042671472,0.74532384,67922.0,67921.0,0.151]
[1722042671699,0.72221917,67922.0,67921.0,0.151]
[1722042671910,0.72305917,67922.0,67921.0,0.151]
[1722042672098,1.0175056,67922.0,67921.0,0.151]
[1722042672322,1.0185056,67922.0,67921.0,0.0731]
[1722042672538,1.06245708,67922.0,67921.0,0.011]
[1722042672738,1.35691208,67922.0,67921.0,0.011]
[1722042672901,1.3129606,67922.0,67921.0,0.011]
[1722042673294,1.87805826,67922.0,67921.0,0.011]
[1722042673531,1.90003401,67922.0,67921.0,0.011]
[1722042673992,1.89849432,67922.0,67921.0,0.011]
[1722042674393,1.7886156,67922.0,67921.0,0.011]
[1722042674851,1.81327576,67922.0,67921.0,0.011]
[1722042675044,2.09892156,67922.0,67921.0,0.011]
[1722042675174,2.0758156,67922.0,67921.0,0.011]
[1722042675379,2.17682592,67922.0,67921.0,0.011]
[1722042675776,1.03344163,67910.0,67909.0,0.066924]
[1722042675999,1.37930484,67910.0,67909.0,0.066924]
[1722042676425,1.2913026,67910.0,67909.0,0.066924]
[1722042677243,1.2923026,67910.0,67909.0,0.069924]
[1722042677462,1.2923026,67910.0,67909.0,0.003924]
[1722042677882,1.4023054,67910.0,67909.0,0.014924]
[1722042678574,1.24728922,67910.0,67909.0,0.014924]
[1722042678725,1.3155009,67910.0,67909.0,0.014924]
[1722042679364,1.3385009,67910.0,67909.0,0.014924]
[1722042679568,1.8098079,67910.0,67909.0,0.014924]
[1722042680054,1.78670001,67910.0,67909.0,0.014924]
[1722042680457,1.78570001,67910.0,67909.0,0.000924]
[1722042680865,1.78670001,67910.0,67909.0,0.008924]
[1722042681017,1.78570001,67910.0,67909.0,0.005924]
[1722042681230,1.78570001,67910.0,67909.0,0.000924]
[1722042681433,1.78570001,67910.0,67909.0,0.001924]
[1722042681655,1.78670001,67910.0,67909.0,0.001924]
[1722042681869,1.78634142,67910.0,67909.0,0.001924]
[1722042682872,1.80945214,67910.0,67909.0,0.001924]
[1722042683069,1.78634142,67910.0,67909.0,0.001924]
[1722042683270,2.08634142,67910.0,67909.0,0.001924]
[1722042685354,2.08632007,67910.0,67909.0,0.001924]
[1722042685934,2.08716354,67910.0,67909.0,0.001924]
[1722042686272,2.1094316,67910.0,67909.0,0.001924]
[1722042687469,2.08632007,67910.0,67909.0,0.001924]
[1722042688574,2.08678195,67910.0,67909.0,0.001924]
[1722042688790,2.08833615,67910.0,67909.0,0.001924]
[1722042688992,2.08678195,67910.0,67909.0,0.001924]
[1722042689567,2.08801749,67910.0,67909.0,0.001924]
[1722042689767,2.08678195,67910.0,67909.0,0.001924]
[1722042689972,2.08791758,67910.0,67909.0,0.001924]
[1722042690167,2.08678195,67910.0,67909.0,0.001924]
[1722042690606,2.10989335,67910.0,67909.0,0.001924]
[1722042691847,2.08678195,67910.0,67909.0,0.001924]
[1722042692028,2.08687503,67910.0,67909.0,0.001924]
[1722042692375,1.71556803,67910.0,67909.0,0.063524]
[1722042692846,1.09706103,67910.0,67909.0,0.0777688]
[1722042693121,0.82196504,67910.0,67909.0,0.0777688]
[1722042693322,0.82196504,67910.0,67909.0,0.063524]
[1722042693561,1.11647204,67910.0,67909.0,0.063524]